fUST/lending_fUST_20240602
["ID","MTS","AMOUNT","RATE_DAILY","PERIOD"]
[328383895,1717309833125,-3694.69912464,0.00021,2]
[328383896,1717309833134,-461.74457998,0.0002101,2]
[328383897,1717309833143,-47.39312453,0.00021499,2]
[328383914,1717309842799,-576.12264178,0.00021499,2]
[328383915,1717309842808,-151.0,0.000215,2]
[328383916,1717309842818,-1000.0,0.000215,2]
[328383917,1717309842826,-150.0,0.00021531,2]
[328383918,1717309842835,-454.499,0.00021531,2]
[328383919,1717309842844,-150.0,0.000218,2]
[328383920,1717309842853,-177.03796931,0.00021817,2]
[328383921,1717309842863,-525.02391305,0.000219,4]
[328383922,1717309842872,-1702.96524585,0.00021915,2]
[328383923,1717309842881,-947.29150199,0.00021915,2]
[328383924,1717309842890,-1039.37302118,0.00021915,2]
[328383925,1717309842900,-1900.92798858,0.00021915,2]
[328383926,1717309842909,-4878.97402987,0.00021915,2]
[328383933,1717309844114,-5647.19278473,0.00021915,2]
[328383934,1717309844125,-155.20393317,0.00021915,2]
[328383935,1717309844135,-1097.98654036,0.00021916,2]
[328383936,1717309844145,-500.0,0.00021916,2]
[328383937,1717309844155,-561.84708928,0.00021916,2]
[328383938,1717309844165,-500.0,0.00021916,2]
[328383939,1717309844175,-464.46505928,0.00021916,2]
[328383940,1717309844184,-434.91765512,0.00021916,2]
[328383941,1717309844193,-353.26059627,0.00021916,2]
[328383942,1717309844203,-407.16811197,0.00021916,2]
[328383943,1717309844213,-500.0,0.00021916,2]
[328383944,1717309844222,-223.69417856,0.00021916,2]
[328383945,1717309844232,-399.18266923,0.00021916,2]
[328383946,1717309844241,-3246.77278059,0.00021917,7]
[328383947,1717309844257,-304.52303766,0.00021917,7]
[328383948,1717309844268,-370.00001,0.00021917,7]
[328383950,1717309846947,-1291.13979722,0.00021917,7]
[328383955,1717309955975,273.37336231,0.0002101,14]
[328383956,1717309971967,273.37336231,0.0002101,14]
[328383957,1717309980018,273.37336231,0.0002101,14]
[328383958,1717309990241,546.74672462,0.0002101,14]
[328383959,1717310005833,273.37336231,0.0002101,14]
[328383960,1717310013744,273.37336231,0.0002101,14]
[328383961,1717310022500,273.37336231,0.0002101,14]
[328383962,1717310030712,273.37336231,0.0002101,14]
[328383963,1717310039449,273.37336231,0.0002101,14]
[328383964,1717310054906,273.37336231,0.0002101,14]
[328383965,1717310063471,546.74672462,0.0002101,14]
[328383966,1717310079617,273.37336231,0.0002101,14]
[328383967,1717310088158,273.37336231,0.0002101,14]
[328383970,1717310096432,273.37336231,0.0002101,14]
[328383971,1717310111994,546.74672462,0.0002101,14]
[328383972,1717310127980,546.74672462,0.0002101,14]
[328383973,1717310136036,273.37336231,0.0002101,14]
[328383974,1717310151681,273.37336231,0.0002101,14]
[328383975,1717310159697,273.37336231,0.0002101,14]
[328383976,1717310167942,273.37336231,0.0002101,14]
[328383977,1717310175912,273.37336231,0.0002101,14]
[328383978,1717310184743,273.37336231,0.0002101,14]
[328383979,1717310193270,273.37336231,0.0002101,14]
[328383980,1717310201499,273.37336231,0.0002101,14]
[328383981,1717310209452,273.37336231,0.0002101,14]
[328383982,1717310217995,273.37336231,0.0002101,14]
[328383983,1717310226049,273.37336231,0.0002101,14]
[328383984,1717310234545,273.37336231,0.0002101,14]
[328383985,1717310242603,273.37336231,0.0002101,14]
[328383986,1717310250849,273.37336231,0.0002101,14]
[328383987,1717310267244,273.37336231,0.0002101,14]
[328383988,1717310274593,273.37336231,0.0002101,14]
[328383989,1717310283336,273.37336231,0.0002101,14]
[328383990,1717310291288,273.37336231,0.0002101,14]
[328383991,1717310300738,273.37336231,0.0002101,14]
[328383992,1717310309275,273.37336231,0.0002101,14]
[328383993,1717310318215,273.37336231,0.0002101,14]
[328383994,1717310326397,273.37336231,0.0002101,14]
[328383995,1717310335979,273.37336231,0.0002101,14]
[328383996,1717310351543,546.74672462,0.0002101,14]
[328383997,1717310367058,546.74672462,0.0002101,14]
[328383998,1717310382533,273.37336231,0.0002101,14]
[328383999,1717310390795,273.37336231,0.0002101,14]
[328384000,1717310399580,273.37336231,0.0002101,14]
[328384001,1717310407508,273.37336231,0.0002101,14]
[328384002,1717310415778,273.37336231,0.0002101,14]
[328384003,1717310423796,273.37336231,0.0002101,14]
[328384004,1717310432668,273.37336231,0.0002101,14]
[328384006,1717310441249,273.37336231,0.0002101,14]
[328384007,1717310450553,273.37336231,0.0002101,14]
[328384010,1717310466005,546.74672462,0.0002101,14]
[328384011,1717310475055,273.37336231,0.0002101,14]
[328384012,1717310483764,273.37336231,0.0002101,14]
[328384013,1717310499766,546.74672462,0.0002101,14]
[328384014,1717310515789,273.37336231,0.0002101,14]
[328384015,1717310522949,239.29452375,9.999e-05,2]
[328384016,1717310523753,273.37336231,0.0002101,14]
[328384017,1717310531893,273.37336231,0.0002101,14]
[328384018,1717310539851,273.37336231,0.0002101,14]
[328384019,1717310548067,273.37336231,0.0002101,14]
[328384020,1717310556645,273.37336231,0.0002101,14]
[328384021,1717310565470,273.37336231,0.0002101,14]
[328384022,1717310580672,546.74672462,0.0002101,14]
[328384023,1717310597225,273.37336231,0.0002101,14]
[328384024,1717310605324,273.37336231,0.0002101,14]
[328384025,1717310614182,546.74672462,0.0002101,14]
[328384026,1717310629935,273.37336231,0.0002101,14]
[328384027,1717310638088,273.37336231,0.0002101,14]
[328384028,1717310646373,273.37336231,0.0002101,14]
[328384029,1717310654841,273.37336231,0.0002101,14]
[328384030,1717310671126,546.74672462,0.0002101,14]
[328384031,1717310679096,273.37336231,0.0002101,14]
[328384032,1717310684657,1000.0,0.0002,14]
[328384033,1717310695151,546.74672462,0.0002101,14]
[328384034,1717310710609,273.37336231,0.0002101,14]
[328384035,1717310718595,273.37336231,0.0002101,14]
[328384036,1717310727301,273.37336231,0.0002101,14]
[328384037,1717310735359,273.37336231,0.0002101,14]
[328384038,1717310744111,273.37336231,0.0002101,14]
[328384039,1717310752058,236.66683264,0.0002101,14]
[328384040,1717310760240,273.37336231,0.0002101,14]
[328384041,1717310769393,273.37336231,0.0002101,14]
[328384042,1717310785712,273.37336231,0.0002101,14]
[328384045,1717310861022,273.37336231,0.0002101,14]
[328384168,1717311040267,-265.71252078,0.0001891,2]
[328384169,1717311040277,-746.95092912,0.0002,2]
[328384170,1717311040290,-753.04907088,0.0002,2]
[328384171,1717311040300,-70.64331417,0.00021009,2]
[328384172,1717311040311,-4416.35633,0.00021009,2]
[328384183,1717311041819,-18405.94125355,0.00021009,2]
[328384184,1717311041829,-3378.86907174,0.0002101,2]
[328384185,1717311041839,-461.74457998,0.0002101,2]
[328384186,1717311041848,-158.86475315,0.0002101,2]
[328384187,1717311041858,-223.45299073,0.0002101,2]
[328384188,1717311041871,-3637.67715595,0.0002101,2]
[328384189,1717311041881,-671.52234278,0.00021339,2]
[328384190,1717311041890,-4233.16048784,0.00021439,2]
[328384191,1717311041899,-620.17578831,0.00021445,2]
[328384192,1717311041909,-268.79293804,0.00021505,2]
[328384194,1717311041918,-150.0,0.00021531,2]
[328384196,1717311041928,-172.6580333,0.00021815,2]
[328384198,1717311041937,-3128.86296416,0.00021816,2]
[328384199,1717311041946,-172.6580333,0.00021816,2]
[328384200,1717311041956,-172.6580333,0.00021817,2]
[328384201,1717311041965,-5535.45135125,0.00021915,2]
[328384202,1717311041974,-1632.34130821,0.00021915,2]
[328384203,1717311041983,-551.57863063,0.00021915,2]
[328384204,1717311041993,-1632.50798791,0.00021915,2]
[328384205,1717311042002,-216.01852232,0.00021915,2]
[328384206,1717311042011,-194.8022931,0.00021915,2]
[328384207,1717311042020,-1153.75711423,0.00021915,2]
[328384208,1717311042029,-157.21522426,0.00021915,2]
[328384209,1717311042039,-309.81411154,0.00021915,2]
[328384210,1717311042048,-262.89033537,0.00021915,2]
[328384211,1717311042057,-1280.0976559,0.00021915,2]
[328384212,1717311042066,-239.95690033,0.00021915,2]
[328384213,1717311042076,-1585.88694591,0.00021915,2]
[328384214,1717311042085,-1503.89573726,0.00021915,2]
[328384215,1717311042094,-231.92738547,0.00021915,2]
[328384216,1717311042104,-2692.83385798,0.00021915,2]
[328384217,1717311042113,-500.0,0.00021916,2]
[328384218,1717311042123,-342.51034487,0.00021916,2]
[328384219,1717311042132,-499.99999999,0.00021916,2]
[328384220,1717311042142,-621.30802104,0.00021916,2]
[328384221,1717311042151,-273.63145076,0.00021916,2]
[328384222,1717311042161,-482.55645397,0.00021916,2]
[328384223,1717311042170,-500.0,0.00021916,2]
[328384224,1717311042179,-500.0,0.00021916,2]
[328384225,1717311042188,-500.0,0.00021916,2]
[328384226,1717311042197,-3972.24416708,0.00021917,7]
[328384227,1717311042206,-500.0,0.00021917,2]
[328384228,1717311042215,-500.0,0.00021917,2]
[328384229,1717311042224,-462.73332539,0.00021917,2]
[328384230,1717311042236,-37.26667461,0.00021917,2]
[328384231,1717311042246,-520.67,0.00021917,2]
[328384232,1717311042255,-500.0,0.00021917,2]
[328384233,1717311042265,-593.65,0.00021917,2]
[328384234,1717311042274,-350.87433643,0.00021917,2]
[328384235,1717311042284,-540.74,0.00021917,2]
[328384236,1717311042293,-778.08,0.00021917,2]
[328384237,1717311042303,-538.13,0.00021917,2]
[328384238,1717311042312,-500.0,0.00021917,2]
[328384239,1717311042322,-500.0,0.00021917,2]
[328384240,1717311042332,-500.0,0.00021917,2]
[328384241,1717311042341,-508.2,0.00021917,2]
[328384242,1717311042350,-500.0,0.00021917,2]
[328384243,1717311042359,-500.0,0.00021917,2]
[328384244,1717311042368,-500.0,0.00021917,2]
[328384245,1717311042377,-500.0,0.00021917,2]
[328384246,1717311042387,-500.0,0.00021917,2]
[328384247,1717311042396,-500.0,0.00021917,2]
[328384248,1717311042404,-975.54,0.00021917,2]
[328384249,1717311042414,-789.78,0.00021917,2]
[328384250,1717311042423,-500.0,0.00021917,2]
[328384251,1717311042432,-500.0,0.00021917,2]
[328384252,1717311042442,-500.0,0.00021917,2]
[328384253,1717311042451,-500.0,0.00021917,2]
[328384254,1717311042460,-500.0,0.00021917,2]
[328384256,1717311042470,-525.93,0.00021917,2]
[328384257,1717311042479,-500.0,0.00021917,2]
[328384258,1717311042488,-817.13,0.00021917,2]
[328384259,1717311042498,-500.0,0.00021917,2]
[328384260,1717311042507,-500.0,0.00021917,2]
[328384261,1717311042517,-500.0,0.00021917,2]
[328384262,1717311042526,-500.0,0.00021917,2]
[328384263,1717311042536,-591.85,0.00021917,2]
[328384265,1717311042546,-500.0,0.00021917,2]
[328384266,1717311042556,-500.0,0.00021917,2]
[328384267,1717311042565,-500.0,0.00021917,2]
[328384268,1717311042575,-500.0,0.00021917,2]
[328384269,1717311042584,-462.70851652,0.00021917,2]
[328384271,1717311042594,-574.4,0.00021917,2]
[328384272,1717311042603,-500.0,0.00021917,2]
[328384273,1717311042612,-546.92977872,0.00021917,2]
[328384274,1717311042622,-500.0,0.00021917,2]
[328384275,1717311042631,-500.0,0.00021917,2]
[328384276,1717311042642,-737.85,0.00021917,2]
[328384277,1717311042652,-500.0,0.00021917,2]
[328384278,1717311042663,-1832.95,0.00021917,2]
[328384279,1717311042674,-500.0,0.00021917,2]
[328384280,1717311042685,-510.75,0.00021917,2]
[328384281,1717311042694,-503.34,0.00021917,2]
[328384282,1717311042703,-1057.27,0.00021917,2]
[328384283,1717311042713,-500.0,0.00021917,2]
[328384284,1717311042723,-1038.9,0.00021917,2]
[328384285,1717311042732,-500.0,0.00021917,2]
[328384286,1717311042741,-205.34257471,0.00021917,2]
[328384287,1717311042751,-500.0,0.00021917,2]
[328384288,1717311042760,-500.0,0.00021917,2]
[328384289,1717311042770,-523.87,0.00021917,2]
[328384290,1717311042782,-500.0,0.00021917,2]
[328384291,1717311042791,-500.0,0.00021917,2]
[328384292,1717311042800,-500.0,0.00021917,2]
[328384293,1717311042810,-1005.26,0.00021917,2]
[328384294,1717311042820,-639.44,0.00021917,2]
[328384296,1717311042829,-1393.15,0.00021917,2]
[328384297,1717311042839,-728.39,0.00021917,2]
[328384298,1717311042848,-666.41,0.00021917,2]
[328384299,1717311042858,-500.0,0.00021917,2]
[328384300,1717311042871,-527.37,0.00021917,2]
[328384301,1717311042881,-500.0,0.00021917,2]
[328384302,1717311042891,-500.0,0.00021917,2]
[328384303,1717311042903,-581.96,0.00021917,2]
[328384304,1717311042912,-500.0,0.00021917,2]
[328384305,1717311042921,-55.42449552,0.00021917,2]
[328384306,1717311042936,-295.83716802,0.00021917,2]
[328384320,1717311046157,-600.76833646,0.00021917,2]
[328384321,1717311046168,-500.0,0.00021917,2]
[328384322,1717311046178,-2913.02,0.00021917,2]
[328384323,1717311046188,-543.85,0.00021917,2]
[328384324,1717311046198,-500.0,0.00021917,2]
[328384325,1717311046208,-500.0,0.00021917,2]
[328384326,1717311046219,-500.0,0.00021917,2]
[328384327,1717311046228,-500.0,0.00021917,2]
[328384328,1717311046239,-500.0,0.00021917,2]
[328384329,1717311046250,-636.21,0.00021917,2]
[328384330,1717311046260,-1100.56,0.00021917,2]
[328384331,1717311046269,-500.0,0.00021917,2]
[328384332,1717311046279,-500.0,0.00021917,2]
[328384333,1717311046288,-500.0,0.00021917,2]
[328384334,1717311046297,-500.0,0.00021917,2]
[328384335,1717311046307,-250.0,0.00021917,2]
[328384336,1717311046317,-563.83,0.00021917,2]
[328384337,1717311046326,-1037.48,0.00021917,2]
[328384339,1717311046336,-500.0,0.00021917,2]
[328384341,1717311046346,-500.0,0.00021917,2]
[328384343,1717311046355,-1033.66,0.00021917,2]
[328384345,1717311046364,-529.79,0.00021917,2]
[328384346,1717311046374,-533.65,0.00021917,2]
[328384347,1717311046383,-500.0,0.00021917,2]
[328384348,1717311046393,-500.0,0.00021917,2]
[328384349,1717311046402,-500.0,0.00021917,2]
[328384350,1717311046413,-500.0,0.00021917,2]
[328384351,1717311046422,-500.0,0.00021917,2]
[328384352,1717311046431,-500.0,0.00021917,2]
[328384353,1717311046441,-500.0,0.00021917,2]
[328384354,1717311046452,-500.0,0.00021917,2]
[328384355,1717311046461,-500.0,0.00021917,2]
[328384356,1717311046471,-500.0,0.00021917,2]
[328384357,1717311046480,-1268.31,0.00021917,2]
[328384358,1717311046489,-651.78,0.00021917,2]
[328384359,1717311046498,-500.0,0.00021917,2]
[328384360,1717311046508,-500.0,0.00021917,2]
[328384361,1717311046517,-500.0,0.00021917,2]
[328384362,1717311046527,-500.0,0.00021917,2]
[328384364,1717311046536,-500.0,0.00021917,2]
[328384366,1717311046545,-500.0,0.00021917,2]
[328384367,1717311046554,-500.0,0.00021917,2]
[328384368,1717311046563,-500.0,0.00021917,2]
[328384369,1717311046573,-2631.02,0.00021917,2]
[328384370,1717311046582,-1320.52,0.00021917,2]
[328384371,1717311046592,-1203.13,0.00021917,2]
[328384372,1717311046601,-500.0,0.00021917,2]
[328384373,1717311046610,-500.0,0.00021917,2]
[328384374,1717311046620,-500.0,0.00021917,2]
[328384375,1717311046629,-500.0,0.00021917,2]
[328384376,1717311046639,-500.0,0.00021917,2]
[328384377,1717311046648,-772.04,0.00021917,2]
[328384378,1717311046657,-1085.03,0.00021917,2]
[328384379,1717311046666,-604.24,0.00021917,2]
[328384380,1717311046675,-500.0,0.00021917,2]
[328384381,1717311046684,-557.54,0.00021917,2]
[328384382,1717311046694,-500.0,0.00021917,2]
[328384383,1717311046703,-500.0,0.00021917,2]
[328384384,1717311046714,-965.36,0.00021917,2]
[328384385,1717311046724,-557.31197545,0.00021917,2]
[328384386,1717311046734,-1722.89,0.00021917,2]
[328384387,1717311046743,-562.39,0.00021917,2]
[328384388,1717311046753,-500.0,0.00021917,2]
[328384389,1717311046763,-500.0,0.00021917,2]
[328384390,1717311046772,-500.0,0.00021917,2]
[328384391,1717311046782,-2749.46,0.00021917,2]
[328384392,1717311046791,-364.47262178,0.00021917,2]
[328384393,1717311046800,-500.0,0.00021917,2]
[328384394,1717311046809,-500.0,0.00021917,2]
[328384395,1717311046819,-529.16,0.00021917,2]
[328384396,1717311046828,-500.0,0.00021917,2]
[328384397,1717311046838,-2659.87,0.00021917,2]
[328384398,1717311046848,-634.29,0.00021917,2]
[328384399,1717311046858,-500.0,0.00021917,2]
[328384400,1717311046872,-500.0,0.00021917,2]
[328384401,1717311046881,-1629.02,0.00021917,2]
[328384402,1717311046891,-596.64,0.00021917,2]
[328384403,1717311046900,-500.0,0.00021917,2]
[328384404,1717311046911,-500.0,0.00021917,2]
[328384405,1717311046920,-500.0,0.00021917,2]
[328384406,1717311046929,-500.0,0.00021917,2]
[328384407,1717311046940,-500.0,0.00021917,2]
[328384408,1717311046953,-500.0,0.00021917,2]
[328384409,1717311046964,-633.2,0.00021917,2]
[328384410,1717311046974,-2133.59,0.00021917,2]
[328384411,1717311046984,-500.0,0.00021917,2]
[328384412,1717311046993,-500.0,0.00021917,2]
[328384413,1717311047002,-500.0,0.00021917,2]
[328384414,1717311047011,-500.0,0.00021917,2]
[328384415,1717311047021,-617.23,0.00021917,2]
[328384416,1717311047030,-904.08,0.00021917,2]
[328384417,1717311047039,-532.43305536,0.00021917,2]
[328384418,1717311047050,-500.0,0.00021917,2]
[328384419,1717311047060,-500.0,0.00021917,2]
[328384420,1717311047070,-525.36,0.00021917,2]
[328384421,1717311047080,-1374.05,0.00021917,2]
[328384422,1717311047090,-500.0,0.00021917,2]
[328384423,1717311047099,-811.15,0.00021917,2]
[328384424,1717311047108,-500.0,0.00021917,2]
[328384425,1717311047121,-500.0,0.00021917,2]
[328384426,1717311047132,-107.2923343,0.00021917,2]
[328384446,1717311115015,160.81085494,0.0002101,14]
[328384448,1717311124033,546.74672462,0.0002101,14]
[328384450,1717311139582,273.37336231,0.0002101,14]
[328384451,1717311147640,273.37336231,0.0002101,14]
[328384452,1717311155849,273.37336231,0.0002101,14]
[328384453,1717311163921,273.37336231,0.0002101,14]
[328384454,1717311179806,546.74672462,0.0002101,14]
[328384458,1717311195339,273.37336231,0.0002101,14]
[328384459,1717311203892,273.37336231,0.0002101,14]
[328384461,1717311219503,273.37336231,0.0002101,14]
[328384463,1717311227993,273.37336231,0.0002101,14]
[328384464,1717311243178,165.88575764,0.0002101,14]
[328384501,1717311358408,-103704.42553307,0.00030285,30]
[328384502,1717311358444,-150.0,0.00030285,120]
[328384503,1717311358468,-40159.22230559,0.00030285,30]
[328384504,1717311358492,-2210186.23875471,0.00030285,120]
[328384505,1717311358516,-160.0,0.00030285,30]
[328384506,1717311358541,-151.61454948,0.00030285,120]
[328384507,1717311358565,-1292.91228543,0.00030285,120]
[328384514,1717311504964,155.0,9.999e-05,2]
[328384515,1717311530403,1000.0,0.00030285,90]
[328384516,1717311530687,1137.5,0.00030285,90]
[328384517,1717311530933,155.0,9.999e-05,2]
[328384518,1717311531557,1000.0,0.00030285,120]
[328384519,1717311531922,1000.0,0.00030285,120]
[328384520,1717311532239,524.5,0.00030285,120]
[328384528,1717311641355,150.98490151,0.00023367,30]
[328384529,1717311641428,150.98490151,0.000229,120]
[328384530,1717311703948,2368.77201896,9.999e-05,2]
[328384531,1717311723584,1000.0,0.00027,30]
[328384534,1717311755718,691.6636591,9.999e-05,2]
[328384536,1717311783324,150.5,0.00024297,35]
[328384537,1717311784565,150.5,0.00024287,35]
[328384538,1717311785177,161.25,0.00024277,35]
[328384540,1717311813905,154.86062544,9.9e-05,2]
[328384546,1717311838360,1000.0,0.00030275,120]
[328384547,1717311838823,1000.0,0.00030275,120]
[328384548,1717311839440,524.5,0.00030275,120]
[328384559,1717311899321,151.0,0.00023814,30]
[328384560,1717311899395,151.0,0.00023338,120]
[328384567,1717311941542,273.37336231,9.9e-05,2]
[328384571,1717311957001,273.37336231,9.9e-05,2]
[328384578,1717312048623,160.0,0.00030275,30]
[328384579,1717312060968,273.37336231,9.9e-05,2]
[328384583,1717312120393,273.37336231,9.9e-05,2]
[328384584,1717312128540,273.37336231,9.9e-05,2]
[328384585,1717312137314,273.37336231,9.9e-05,2]
[328384588,1717312212267,150.98490151,0.00024063,30]
[328384589,1717312212340,150.98490151,0.00023581,120]
[328384645,1717312232494,-1315.98445498,0.00020708,2]
[328384648,1717312232505,-1903.7674032,0.00020709,2]
[328384649,1717312232514,-1761.5241635,0.0002071,2]
[328384652,1717312232526,-1306.74838533,0.0002071,2]
[328384654,1717312232535,-611.74783864,0.00020724,2]
[328384655,1717312232544,-423.95175023,0.0002091,2]
[328384658,1717312232555,-207.15684571,0.0002091,2]
[328384659,1717312232565,-1004.94906762,0.00021,2]
[328384662,1717312232575,-22892.94089772,0.00021,2]
[328384663,1717312232584,-1000.0,0.00021,4]
[328384665,1717312232594,-1983.15009745,0.00021009,2]
[328384667,1717312232604,-2688.51601568,0.0002101,2]
[328384670,1717312232613,-151.0,0.00021301,5]
[328384671,1717312232623,-151.0,0.00021378,5]
[328384673,1717312232632,-151.0,0.00021455,5]
[328384675,1717312232641,-932.97315206,0.000215,2]
[328384677,1717312232650,-150.0,0.00021531,2]
[328384679,1717312232660,-151.0,0.00021532,5]
[328384681,1717312232669,-151.0,0.00021609,5]
[328384683,1717312232679,-499.49080616,0.00021617,2]
[328384685,1717312232689,-499.49080612,0.00021667,2]
[328384687,1717312232698,-151.0,0.00021686,5]
[328384689,1717312232707,-151.0,0.00021686,5]
[328384691,1717312232716,-307.97737637,0.00021696,2]
[328384693,1717312232726,-160.49026021,0.00021697,2]
[328384695,1717312232736,-499.49080612,0.00021717,2]
[328384697,1717312232745,-8206.3709794,0.00021717,2]
[328384699,1717312232754,-620.88353376,0.00021717,2]
[328384701,1717312232764,-4233.16048784,0.00021736,2]
[328384703,1717312232773,-151.0,0.00021763,5]
[328384705,1717312232782,-151.0,0.00021763,5]
[328384707,1717312232791,-499.49080612,0.00021766,2]
[328384709,1717312232800,-631.10859594,0.00021783,2]
[328384711,1717312232809,-372.91156034,0.00021799,2]
[328384713,1717312232818,-72498.60631761,0.000218,3]
[328384715,1717312232827,-2000.0,0.000218,2]
[328384717,1717312232837,-697.27498402,0.00021813,2]
[328384719,1717312232847,-318.00069836,0.00021814,2]
[328384721,1717312232856,-500.0,0.00021814,2]
[328384723,1717312232865,-237.44853587,0.00021814,2]
[328384725,1717312232875,-405.86636282,0.00021814,2]
[328384727,1717312232884,-500.0,0.00021814,2]
[328384729,1717312232894,-345.83087203,0.00021814,2]
[328384731,1717312232903,-500.0,0.00021814,2]
[328384733,1717312232912,-500.0,0.00021814,2]
[328384735,1717312232922,-171.52506784,0.00021814,2]
[328384737,1717312232932,-558.60948491,0.00021814,2]
[328384739,1717312232941,-301.71595593,0.00021814,2]
[328384741,1717312232951,-500.0,0.00021814,2]
[328384743,1717312232960,-500.0,0.00021814,2]
[328384745,1717312232970,-500.0,0.00021814,2]
[328384747,1717312232979,-500.0,0.00021814,2]
[328384749,1717312232989,-500.0,0.00021814,2]
[328384751,1717312232998,-500.0,0.00021814,2]
[328384753,1717312233008,-429.978061,0.00021814,2]
[328384755,1717312233017,-10354.16390603,0.00021815,7]
[328384757,1717312233026,-6808.85600104,0.00021815,2]
[328384759,1717312233035,-513.4844886,0.00021815,2]
[328384761,1717312233044,-553.30305534,0.00021815,2]
[328384763,1717312233055,-4779.69581245,0.00021815,2]
[328384765,1717312233064,-1047.48645769,0.00021815,2]
[328384767,1717312233074,-155.58227695,0.00021815,2]
[328384769,1717312233083,-658.48926497,0.00021815,2]
[328384771,1717312233092,-155.33295697,0.00021815,2]
[328384773,1717312233102,-303.65001663,0.00021815,2]
[328384775,1717312233111,-155.0,0.00021815,2]
[328384777,1717312233120,-5659.0212748,0.00021815,2]
[328384778,1717312233130,-1107.27862594,0.00021815,2]
[328384779,1717312233140,-474.37601435,0.00021815,2]
[328384780,1717312233149,-284.8431826,0.00021815,2]
[328384781,1717312233159,-1339.85473358,0.00021815,2]
[328384782,1717312233168,-155.39507595,0.00021815,2]
[328384783,1717312233177,-251.13827733,0.00021815,2]
[328384784,1717312233186,-155.91031523,0.00021815,2]
[328384785,1717312233195,-1497.19361038,0.00021815,2]
[328384786,1717312233205,-281.33101558,0.00021815,2]
[328384787,1717312233214,-524.23357601,0.00021815,2]
[328384788,1717312233223,-758.31809387,0.00021815,2]
[328384789,1717312233232,-261.25891751,0.00021815,2]
[328384796,1717312233345,-156.73543218,0.00021815,2]
[328384798,1717312233358,-20189.48616983,0.00021815,2]
[328384800,1717312233367,-252.07741857,0.00021815,2]
[328384802,1717312233378,-238.95770252,0.00021815,2]
[328384804,1717312233388,-155.71739411,0.00021815,2]
[328384806,1717312233402,-532.82475551,0.00021815,2]
[328384808,1717312233412,-2105.38655213,0.00021815,2]
[328384810,1717312233422,-234.32785083,0.00021815,2]
[328384812,1717312233431,-206.08520921,0.00021815,2]
[328384814,1717312233442,-12869.92202791,0.00021815,2]
[328384816,1717312233451,-2928.97455787,0.00021815,2]
[328384818,1717312233460,-1320.90156692,0.00021815,2]
[328384820,1717312233470,-351.87655956,0.00021815,2]
[328384822,1717312233482,-499.49080612,0.00021816,2]
[328384824,1717312233492,-577.19417035,0.00021816,2]
[328384826,1717312233502,-151.0,0.0002184,5]
[328384828,1717312233511,-151.0,0.0002184,5]
[328384830,1717312233520,-97573.84862087,0.000219,2]
[328384837,1717312233573,-50718.57775319,0.000219,2]
[328385036,1717312238276,-23442.90109397,0.000219,2]
[328385038,1717312238288,-1000.26608011,0.000219,2]
[328385043,1717312242073,-875.54968914,0.000219,2]
[328385044,1717312242085,-15249.96998017,0.000219,2]
[328385086,1717312245030,-1315.98445498,0.00021899,2]
[328385088,1717312245040,-3442.31883977,0.000219,2]
[328385090,1717312245049,-160.0,0.000219,2]
[328385092,1717312245059,-2736.37509655,0.00021917,2]
[328385094,1717312245068,-512.73545649,0.00021917,2]
[328385096,1717312245077,-502.04,0.00021917,2]
[328385098,1717312245087,-500.0,0.00021917,2]
[328385100,1717312245097,-163.32753871,0.00021917,2]
[328385102,1717312245108,-500.0,0.00021917,2]